bitfinex/quotes_BTCUSD_20240819
["timestamp","ask_amount","ask_price","bid_price","bid_amount"]
[1724045051175,0.02277891,58584.0,58583.0,0.44524674]
[1724045051378,0.02377891,58584.0,58583.0,0.45824674]
[1724045053001,0.02377891,58584.0,58583.0,0.69722374]
[1724045053350,0.002,58584.0,58583.0,0.69722374]
[1724045054785,0.02378274,58584.0,58583.0,0.69722374]
[1724045056778,0.02378274,58584.0,58583.0,0.74722374]
[1724045057806,0.02378274,58584.0,58583.0,0.50824674]
[1724045058028,0.02378274,58584.0,58583.0,0.30935874]
[1724045058220,0.02378274,58584.0,58583.0,0.24545874]
[1724045058429,0.14326874,58584.0,58583.0,0.24545874]
[1724045058864,0.02378274,58584.0,58583.0,0.24545874]
[1724045059242,0.02378274,58584.0,58583.0,0.36494674]
[1724045059605,0.02378274,58584.0,58583.0,0.24545874]
[1724045062814,0.02378274,58584.0,58583.0,0.0739042]
[1724045062815,0.14326874,58584.0,58583.0,0.0739042]
[1724045063394,0.38224174,58584.0,58583.0,0.0739042]
[1724045064361,0.14326874,58584.0,58583.0,0.0739042]
[1724045064496,0.02378274,58584.0,58583.0,0.51134674]
[1724045065188,0.02378274,58584.0,58583.0,0.39185874]
[1724045066549,0.02378274,58584.0,58583.0,0.51134674]
[1724045067172,0.02378274,58584.0,58583.0,0.39185874]
[1724045067750,0.38224174,58584.0,58583.0,0.1375042]
[1724045067945,0.38224174,58584.0,58583.0,0.0739042]
[1724045068351,0.62121474,58584.0,58583.0,0.0739042]
[1724045075148,0.38224174,58584.0,58583.0,0.0739042]
[1724045075775,0.38224174,58584.0,58583.0,0.1402042]
[1724045077255,0.46214174,58584.0,58583.0,0.0739042]
[1724045078086,0.70111474,58584.0,58583.0,0.0739042]
[1724045080741,0.99105521,58584.0,58583.0,0.0739042]
[1724045081144,0.94008774,58584.0,58583.0,0.0739042]
[1724045081748,1.01653895,58584.0,58583.0,0.0739042]
[1724045083390,1.01653895,58584.0,58583.0,0.07040082]
[1724045083595,1.01676085,58584.0,58583.0,0.07040082]
[1724045086371,0.93686085,58584.0,58583.0,0.07040082]
[1724045087563,0.86018774,58584.0,58583.0,0.07040082]
[1724045088316,1.13272167,58584.0,58583.0,0.07040082]
[1724045089067,0.79149387,58584.0,58583.0,0.07040082]
[1724045089301,0.69790672,58584.0,58583.0,0.07040082]
[1724045089493,0.62121474,58584.0,58583.0,0.07040082]
[1724045089698,0.62121474,58584.0,58583.0,0.07130502]
[1724045089904,0.62121474,58584.0,58583.0,0.15180502]
[1724045089905,0.19440265,58584.0,58583.0,0.15180502]
[1724045090037,0.02378274,58584.0,58583.0,0.15180502]
[1724045090217,0.14326874,58584.0,58583.0,0.21310502]
[1724045090432,0.02378274,58584.0,58583.0,0.21310502]
[1724045092310,0.14326874,58584.0,58583.0,0.21310502]
[1724045092777,0.02378274,58584.0,58583.0,0.21310502]
[1724045094146,0.14326874,58584.0,58583.0,0.21310502]
[1724045094345,0.38224174,58584.0,58583.0,0.21310502]
[1724045095603,0.02378274,58584.0,58583.0,0.21310502]
[1724045097100,0.14326874,58584.0,58583.0,0.21310502]
[1724045097939,0.02378274,58584.0,58583.0,0.38465956]
[1724045099530,0.14326874,58584.0,58583.0,0.38465956]
[1724045100387,0.02378274,58584.0,58583.0,0.38465956]
[1724045101935,0.02460474,58584.0,58583.0,0.38465956]
[1724045102460,0.02460474,58584.0,58583.0,0.50414756]
[1724045105794,0.14409074,58584.0,58583.0,0.38465956]
[1724045106020,0.38306374,58584.0,58583.0,0.24285956]
[1724045106252,0.38306374,58584.0,58583.0,0.07130502]
[1724045106253,1.05657091,58584.0,58583.0,0.07130502]
[1724045106452,1.17559498,58584.0,58583.0,0.07130502]
[1724045106655,1.30349791,58584.0,58583.0,0.07130502]
[1724045107305,1.17559498,58584.0,58583.0,0.07130502]
[1724045115029,1.64856798,58584.0,58583.0,0.07130502]
[1724045115375,1.78954931,58584.0,58583.0,0.07130502]
[1724045115852,1.78854931,58584.0,58583.0,0.05830502]
[1724045116054,1.78954931,58584.0,58583.0,0.06530502]
[1724045116887,1.94203282,58584.0,58583.0,0.0579042]
[1724045117101,1.78854931,58584.0,58583.0,0.0579042]
[1724045117308,1.78854931,58584.0,58583.0,0.0619042]
[1724045118621,1.64814931,58584.0,58583.0,0.0619042]
[1724045118794,1.50716798,58584.0,58583.0,0.0619042]
[1724045119438,1.54133862,58584.0,58583.0,0.0619042]
[1724045119636,1.50716798,58584.0,58583.0,0.0619042]
[1724045120249,1.34766798,58584.0,58583.0,0.0619042]
[1724045120452,1.15793242,58584.0,58583.0,0.0619042]
[1724045120652,1.03019498,58584.0,58583.0,0.0619042]
[1724045121953,0.69769372,58584.0,58583.0,0.0619042]
[1724045122448,0.69769032,58584.0,58583.0,0.0619042]
[1724045122852,0.45871732,58584.0,58583.0,0.0619042]
[1724045123058,0.62103674,58584.0,58583.0,0.0619042]
[1724045123281,1.2753293,58584.0,58583.0,0.0619042]
[1724045123484,1.2117293,58584.0,58583.0,0.0619042]
[1724045124093,1.10952452,58584.0,58583.0,0.0619042]
[1724045124292,1.10975582,58584.0,58583.0,0.0619042]
[1724045124405,0.94240974,58584.0,58583.0,0.0619042]
[1724045124608,1.10975607,58584.0,58583.0,0.0619042]
[1724045124812,1.21196085,58584.0,58583.0,0.0619042]
[1724045126684,1.21125317,58584.0,58583.0,0.0619042]
[1724045126887,1.10904839,58584.0,58583.0,0.0619042]
[1724045128172,1.23680437,58584.0,58583.0,0.0619042]
[1724045128384,1.30290437,58584.0,58583.0,0.0619042]
[1724045129992,1.23680437,58584.0,58583.0,0.0619042]
[1724045130327,1.10904839,58584.0,58583.0,0.0619042]
[1724045130948,1.02664839,58584.0,58583.0,0.0619042]
[1724045131151,1.12880293,58584.0,58583.0,0.0619042]
[1724045131353,1.02640326,58584.0,58583.0,0.0619042]
[1724045133023,1.15409673,58584.0,58583.0,0.0619042]
[1724045133151,1.02640326,58584.0,58583.0,0.0619042]
[1724045135341,1.12860689,58584.0,58583.0,0.0619042]
[1724045138182,1.10250326,58584.0,58583.0,0.0619042]
[1724045138393,1.23019673,58584.0,58583.0,0.0619042]
[1724045138589,1.29489673,58584.0,58583.0,0.0619042]
[1724045139817,1.53386973,58584.0,58583.0,0.0619042]
[1724045140339,1.40543658,58584.0,58583.0,0.0619042]
[1724045140968,1.45422189,58584.0,58583.0,0.0619042]
[1724045141782,1.59520322,58584.0,58583.0,0.0619042]
[1724045144819,1.59500462,58584.0,58583.0,0.0619042]
[1724045146900,1.83387348,58584.0,58583.0,0.0619042]
[1724045147801,2.00542802,58584.0,58583.0,0.0619042]
[1724045148565,2.09912802,58584.0,58583.0,0.0619042]
[1724045149351,2.09443812,58584.0,58583.0,0.0619042]
[1724045150855,1.92288358,58584.0,58583.0,0.0619042]
[1724045153927,1.92351208,58584.0,58583.0,0.0619042]
[1724045154131,2.33521713,58584.0,58583.0,0.0619042]
[1724045154345,2.18548508,58584.0,58583.0,0.0619042]
[1724045154993,2.18648508,58584.0,58583.0,0.0619042]
[1724045155195,2.18843588,58584.0,58583.0,0.0619042]
[1724045155395,2.18743588,58584.0,58583.0,0.0549042]
[1724045155942,2.1796932,58584.0,58583.0,0.0559042]
[1724045156346,2.1796932,58584.0,58583.0,0.0519042]
[1724045156812,2.1806932,58584.0,58583.0,0.0519042]
[1724045157803,2.2984324,58584.0,58583.0,0.0519042]
[1724045158219,2.18043299,58584.0,58583.0,0.0519042]
[1724045159160,2.19065173,58584.0,58583.0,0.0519042]
[1724045160521,1.317395,58582.0,58581.0,0.0009031]
[1724045160723,1.317395,58582.0,58572.0,0.0009031]
[1724045160724,0.0029508,58573.0,58572.0,0.0009031]
[1724045160926,1.23754318,58573.0,58572.0,0.0009031]
[1724045161137,1.9176053,58573.0,58572.0,0.0009031]
[1724045161349,2.167651,58573.0,58572.0,0.0009031]
[1724045162616,2.167651,58573.0,58572.0,0.0019031]
[1724045163022,2.168651,58573.0,58572.0,0.0009031]
[1724045163221,2.1001335,58573.0,58572.0,0.0009031]
[1724045163557,2.27168804,58573.0,58572.0,0.0009031]
[1724045163757,2.27068804,58573.0,58572.0,0.0009031]
[1724045163916,2.27468804,58573.0,58572.0,0.0009031]
[1724045164121,2.12148299,58573.0,58572.0,0.0009031]
[1724045164532,2.11853219,58573.0,58572.0,0.0009031]
[1724045164721,1.94697765,58573.0,58572.0,0.0009031]
[1724045165309,1.89819234,58573.0,58572.0,0.0009031]
[1724045165831,1.74428495,58573.0,58572.0,0.0009031]
[1724045166032,1.89805084,58573.0,58572.0,0.0009031]
[1724045169747,2.06960538,58573.0,58572.0,0.0009031]
[1724045170516,1.83699968,58573.0,58572.0,0.0009031]
[1724045174038,1.75639968,58573.0,58572.0,0.0009031]
[1724045174280,1.80517909,58573.0,58572.0,0.0009031]
[1724045174499,1.75639968,58573.0,58572.0,0.0009031]
[1724045175330,1.80517997,58573.0,58572.0,0.0009031]
[1724045177130,1.38556557,58573.0,58572.0,0.1487031]
[1724045177345,1.45377321,58573.0,58572.0,0.1487031]
[1724045177545,1.3517985,58573.0,58572.0,0.1487031]
[1724045177764,1.19798377,58573.0,58572.0,0.1487031]
[1724045178002,1.27446892,58573.0,58572.0,0.1487031]
[1724045178400,1.45681897,58573.0,58572.0,0.1487031]
[1724045178623,1.35484426,58573.0,58572.0,0.1487031]
[1724045179198,1.45681897,58573.0,58572.0,0.1487031]
[1724045179402,1.45686909,58573.0,58572.0,0.1487031]
[1724045183290,1.35487695,58573.0,58572.0,0.1487031]
[1724045183848,1.35520381,58573.0,58572.0,0.1487031]
[1724045184348,1.48275119,58573.0,58572.0,0.1487031]
[1724045184550,1.35520381,58573.0,58572.0,0.1487031]
[1724045185139,1.48275119,58573.0,58572.0,0.1487031]
[1724045185975,0.62124977,58573.0,58572.0,0.1487031]
[1724045186165,0.86026677,58573.0,58572.0,0.1487031]
[1724045186579,0.62124977,58573.0,58572.0,0.1487031]
[1724045186804,0.61724977,58573.0,58572.0,0.1487031]
[1724045187010,0.61424977,58573.0,58572.0,0.1487031]
[1724045187268,0.61424977,58573.0,58572.0,0.1497031]
[1724045187471,0.61424977,58573.0,58572.0,0.1527031]
[1724045188972,0.02170777,58573.0,58572.0,0.1527031]
[1724045189377,0.119507,58574.0,58573.0,0.1402]
[1724045190537,0.119507,58574.0,58573.0,0.1541135]
[1724045190538,0.120507,58574.0,58573.0,0.1541135]
[1724045191355,0.35952,58574.0,58573.0,0.1541135]
[1724045191648,0.692233,58574.0,58573.0,0.1541135]
[1724045192501,0.45422,58574.0,58573.0,0.1641135]
[1724045193910,0.36052,58574.0,58573.0,0.1641135]
[1724045195484,0.121507,58574.0,58573.0,0.1641135]
[1724045195845,0.36052,58574.0,58573.0,0.1641135]
[1724045197906,0.37940797,58574.0,58573.0,0.1650177]
[1724045198115,0.38022997,58574.0,58573.0,0.1650177]
[1724045200474,0.14121697,58574.0,58573.0,0.1650177]
[1724045201467,0.02170997,58574.0,58573.0,0.1650177]
[1724045202545,0.14121597,58574.0,58573.0,0.1650177]
[1724045203611,0.02170997,58574.0,58573.0,0.33657224]
[1724045203790,0.02170997,58574.0,58573.0,0.45949434]
[1724045203985,0.002822,58574.0,58573.0,0.45608024]
[1724045204648,0.02171603,58574.0,58573.0,0.45608024]
[1724045204950,0.002822,58574.0,58573.0,0.45608024]
[1724045205112,0.02171603,58574.0,58573.0,0.45608024]
[1724045210911,0.02318303,58574.0,58573.0,0.69509724]
[1724045212248,0.02318303,58574.0,58573.0,0.45608024]
[1724045213365,0.02318303,58574.0,58573.0,0.19637224]
[1724045213366,0.14268903,58574.0,58573.0,0.19637224]
[1724045213566,0.02318303,58574.0,58573.0,0.19637224]
[1724045214415,0.02318303,58574.0,58573.0,0.31588024]
[1724045218438,0.02318303,58574.0,58573.0,0.39258024]
[1724045218641,0.02318303,58574.0,58573.0,0.45358024]
[1724045220472,0.02318303,58574.0,58573.0,0.33407224]
[1724045221470,0.02318303,58574.0,58573.0,0.69259724]
[1724045222029,0.02318303,58574.0,58573.0,0.70265746]
[1724045222234,0.02318303,58574.0,58573.0,0.46364046]
[1724045222434,0.02318303,58574.0,58573.0,0.70265746]
[1724045222637,0.02318303,58574.0,58573.0,0.94167446]
[1724045223006,0.004289,58574.0,58573.0,0.94167446]
[1724045223722,0.003289,58574.0,58573.0,0.93167446]
[1724045223926,0.002289,58574.0,58573.0,0.67059724]
[1724045224203,0.02117525,58574.0,58573.0,0.59389724]
[1724045224392,0.003289,58574.0,58573.0,0.60789724]
[1724045224581,0.02117525,58574.0,58573.0,0.59389724]
[1724045224785,0.002289,58574.0,58573.0,0.59389724]
[1724045224992,0.002289,58574.0,58573.0,0.35488024]
[1724045225140,0.02117525,58574.0,58573.0,0.59389724]
[1724045225805,0.02217525,58574.0,58573.0,0.60589724]
[1724045225980,0.02217525,58574.0,58573.0,0.61989724]
[1724045226190,0.02117525,58574.0,58573.0,0.60789724]
[1724045226566,0.02117525,58574.0,58573.0,0.62189724]
[1724045227643,0.02117525,58574.0,58573.0,0.38288024]
[1724045228485,0.78900725,58574.0,58573.0,0.0308177]
[1724045228691,1.02802025,58574.0,58573.0,0.0308177]
[1724045229539,1.31293763,58574.0,58573.0,0.0308177]
[1724045229738,1.50314205,58574.0,58573.0,0.0308177]
[1724045229958,1.30231117,58574.0,58573.0,0.0308177]
[1724045230372,1.30231117,58574.0,58573.0,0.0028177]
[1724045230373,1.45555647,58574.0,58573.0,0.0028177]
[1724045230573,1.69456947,58574.0,58573.0,0.0028177]
[1724045230772,1.69456947,58574.0,58573.0,0.0188177]
[1724045231137,1.94426229,58574.0,58573.0,0.0098177]
[1724045231337,1.86425418,58574.0,58573.0,0.0098177]
[1724045232131,1.69469723,58574.0,58573.0,0.0028177]
[1724045232325,1.77465085,58574.0,58573.0,0.0068177]
[1724045232531,1.69464951,58574.0,58573.0,0.0128177]
[1724045232728,1.83708795,58574.0,58573.0,0.0128177]
[1724045232904,1.91687843,58574.0,58573.0,0.0128177]
[1724045233113,2.08843297,58574.0,58573.0,0.0128177]
[1724045233455,2.0085782,58574.0,58573.0,0.0128177]
[1724045233750,1.83702366,58574.0,58573.0,0.0128177]
[1724045234133,1.78820765,58574.0,58573.0,0.0128177]
[1724045234340,1.91613477,58574.0,58573.0,0.0128177]
[1724045234517,1.91908557,58574.0,58573.0,0.0128177]
[1724045234721,2.09064011,58574.0,58573.0,0.0128177]
[1724045235352,1.91908557,58574.0,58573.0,0.0128177]
[1724045235525,1.94208557,58574.0,58573.0,0.0128177]
[1724045237959,1.93913477,58574.0,58573.0,0.0128177]
[1724045238398,2.09215836,58574.0,58573.0,0.0128177]
[1724045239190,1.85977186,58574.0,58573.0,0.0128177]
[1724045239600,1.81392099,58574.0,58573.0,0.0128177]
[1724045239803,1.81097019,58574.0,58573.0,0.0128177]
[1724045239960,2.04998319,58574.0,58573.0,0.0128177]
[1724045240381,1.8969596,58574.0,58573.0,0.0128177]
[1724045240757,2.06951414,58574.0,58573.0,0.0128177]
[1724045240990,2.32153773,58574.0,58573.0,0.0128177]
[1724045241166,2.16851414,58574.0,58573.0,0.0128177]
[1724045241760,2.16951414,58574.0,58573.0,0.0128177]
[1724045242177,1.99654863,58574.0,58573.0,0.0128177]
[1724045244353,1.75753563,58574.0,58573.0,0.0128177]
[1724045244557,1.99654863,58574.0,58573.0,0.0128177]
[1724045245838,1.99754863,58574.0,58573.0,0.0128177]
[1724045246145,1.99949943,58574.0,58573.0,0.0128177]
[1724045247052,1.99949943,58574.0,58573.0,0.00329657]
[1724045247053,2.15452302,58574.0,58573.0,0.00329657]
[1724045247259,1.218591,58556.0,58555.0,0.009031]
[1724045247456,1.312291,58556.0,58555.0,0.009031]
[1724045247617,1.38183316,58556.0,58555.0,0.009031]
[1724045248488,1.330911,58556.0,58555.0,0.009031]
[1724045249409,1.331911,58556.0,58555.0,0.022031]
[1724045249608,1.331911,58556.0,58555.0,0.036031]
[1724045249609,1.332911,58556.0,58555.0,0.036031]
[1724045250844,1.272511,58556.0,58555.0,0.036031]
[1724045251320,1.72066049,58556.0,58555.0,0.036031]
[1724045251561,1.77158265,58556.0,58555.0,0.036031]
[1724045251713,1.43879565,58556.0,58555.0,0.036031]
[1724045251912,1.272511,58556.0,58555.0,0.036031]
[1724045252319,1.188211,58556.0,58555.0,0.009031]
[1724045252749,1.096511,58556.0,58555.0,0.026031]
[1724045252905,0.951124,58556.0,58555.0,0.026031]
[1724045254811,0.857424,58556.0,58555.0,0.101831]
[1724045255004,0.857424,58556.0,58555.0,0.166431]
[1724045255384,0.37925,58556.0,58555.0,0.166431]
[1724045255546,0.140163,58556.0,58555.0,0.166431]
[1724045255759,0.02062,58556.0,58555.0,0.166431]
[1724045256174,0.140163,58556.0,58555.0,0.166431]
[1724045257383,0.37925,58556.0,58555.0,0.166431]
[1724045258806,0.02062,58556.0,58555.0,0.33798554]
[1724045259812,0.02062,58556.0,58555.0,0.45753054]
[1724045260859,0.02062,58556.0,58555.0,0.33798554]
[1724045261262,0.02062,58556.0,58555.0,0.45753054]
[1724045262333,0.001,58556.0,58555.0,0.45053054]
[1724045262747,0.001,58556.0,58555.0,0.93081254]
[1724045262968,0.001,58556.0,58555.0,1.03281254]
[1724045263206,0.239048,58566.0,58558.0,0.239075]
[1724045263434,0.119525,58565.0,58563.0,0.062]
[1724045263675,0.119525,58565.0,58564.0,0.0756]
[1724045263870,0.119525,58565.0,58564.0,0.1412]
[1724045264857,0.239041,58568.0,58564.0,0.31275454]
[1724045265112,0.119523,58566.0,58564.0,0.31275454]
[1724045265264,0.239041,58568.0,58565.0,0.0616]
[1724045265445,0.119522,58567.0,58565.0,0.0616]
[1724045265646,0.239018,58573.0,58567.0,0.0758]
[1724045266033,0.119517,58569.0,58568.0,0.0616]
[1724045267395,0.239018,58573.0,58568.0,0.181118]
[1724045267598,0.119511,58572.0,58570.0,0.0626]
[1724045268261,0.119513,58571.0,58570.0,0.0626]
[1724045269725,0.119511,58572.0,58570.0,0.0626]
[1724045269927,0.119513,58571.0,58570.0,0.0726]
[1724045270162,0.119513,58571.0,58570.0,0.0866]
[1724045270297,0.119513,58571.0,58570.0,0.0766]
[1724045270981,0.119513,58571.0,58570.0,0.0896]
[1724045271998,0.119511,58572.0,58570.0,0.0896]
[1724045272726,0.01567228,58571.0,58570.0,0.0896]
[1724045272927,0.01567228,58571.0,58570.0,0.0626]
[1724045273386,0.01567228,58571.0,58570.0,0.0906]
[1724045273674,0.13518528,58571.0,58570.0,0.0766]
[1724045274071,0.13518528,58571.0,58570.0,0.0906]
[1724045274402,0.13518528,58571.0,58570.0,0.028]
[1724045274603,0.37421128,58571.0,58570.0,0.028]
[1724045275571,0.13518528,58571.0,58570.0,0.028]
[1724045275703,0.13518528,58571.0,58570.0,0.173]
[1724045277025,0.13518528,58571.0,58570.0,0.0922]
[1724045277430,0.37421128,58571.0,58570.0,0.0922]
[1724045277629,0.61323728,58571.0,58570.0,0.0922]
[1724045278415,0.93046328,58571.0,58570.0,0.028]
[1724045278850,1.31236495,58571.0,58570.0,0.028]
[1724045279042,1.37786495,58571.0,58570.0,0.028]
[1724045279247,1.42879258,58571.0,58570.0,0.028]
[1724045279488,1.42879258,58571.0,58570.0,0.014]
[1724045279703,0.358624,58557.0,58556.0,0.0621]
[1724045279925,0.37432746,58557.0,58556.0,0.0621]
[1724045280284,0.61341046,58557.0,58556.0,0.0621]
[1724045280485,0.61341046,58557.0,58555.0,0.009031]
[1724045280486,0.35863,58556.0,58555.0,0.009031]
[1724045280853,0.61336791,58556.0,58555.0,0.009031]
[1724045281056,0.85245491,58556.0,58555.0,0.009031]
[1724045282706,0.61336791,58556.0,58555.0,0.009031]
[1724045283516,0.61336791,58556.0,58555.0,0.023031]
[1724045283714,0.61436791,58556.0,58555.0,0.037031]
[1724045284518,0.85345491,58556.0,58555.0,0.037031]
[1724045284729,0.93075491,58556.0,58555.0,0.037031]
[1724045285687,0.99105491,58556.0,58555.0,0.037031]
[1724045286256,0.99005491,58556.0,58555.0,0.009031]
[1724045286437,0.99005491,58556.0,58555.0,0.017031]
[1724045286644,0.92975491,58556.0,58555.0,0.028031]
[1724045286993,0.61336791,58556.0,58555.0,0.028031]
[1724045287805,0.85245491,58556.0,58555.0,0.028031]
[1724045288449,1.3159874,58556.0,58555.0,0.028031]
[1724045288862,0.99165491,58556.0,58555.0,0.028031]
[1724045289065,0.93105491,58556.0,58555.0,0.028031]
[1724045291800,0.85245491,58556.0,58555.0,0.028031]
[1724045292363,0.61336791,58556.0,58555.0,0.028031]
[1724045298876,0.61336791,58556.0,58555.0,0.38563054]
[1724045298877,0.01565091,58556.0,58555.0,0.38563054]
[1724045299078,0.239073,58560.0,58556.0,0.119543]
[1724045299318,0.13499256,58559.0,58556.0,0.119543]
[1724045299506,0.01545556,58559.0,58557.0,0.119541]
[1724045299723,0.01545556,58559.0,58555.0,0.50517454]
[1724045299977,0.119537,58559.0,58556.0,0.119543]
[1724045300184,0.119537,58559.0,58556.0,0.131543]
[1724045300185,0.01545556,58558.0,58556.0,0.131543]
[1724045300393,0.01545556,58558.0,58556.0,0.140543]
[1724045300592,0.01545556,58558.0,58556.0,0.128543]
[1724045300798,0.01545556,58558.0,58556.0,0.119543]
[1724045301214,0.01545556,58558.0,58556.0,0.011]
[1724045301654,0.01545556,58558.0,58556.0,0.130542]
[1724045302907,0.01545556,58558.0,58557.0,0.119541]
[1724045303313,0.119538,58559.0,58556.0,0.133543]
[1724045303535,0.01551516,58558.0,58556.0,0.144543]
[1724045303871,0.01551516,58558.0,58556.0,0.133543]
[1724045304066,0.01551516,58558.0,58556.0,0.119543]
[1724045304293,0.13505416,58558.0,58557.0,0.025]
[1724045304663,0.01551516,58558.0,58557.0,0.025]
[1724045305133,0.01551516,58558.0,58557.0,0.011]
[1724045306363,0.01551516,58558.0,58556.0,0.014]
[1724045306521,0.01551516,58558.0,58556.0,0.011]
[1724045306724,0.01551516,58558.0,58557.0,0.014]
[1724045306928,0.13505416,58558.0,58557.0,0.014]
[1724045307106,0.37413316,58558.0,58557.0,0.014]
[1724045307313,0.37413316,58558.0,58557.0,0.025]
[1724045307723,0.61321216,58558.0,58557.0,0.025]
[1724045307946,0.75511216,58558.0,58557.0,0.025]
[1724045308367,0.99419116,58558.0,58557.0,0.025]
[1724045310255,0.61321216,58558.0,58557.0,0.091]
[1724045312516,0.13505416,58558.0,58557.0,0.091]
[1724045313338,0.01551516,58558.0,58557.0,0.091]
[1724045313530,0.119538,58559.0,58557.0,0.091]
[1724045313730,0.1739,58568.0,58557.0,0.091]
[1724045313731,0.119532,58562.0,58558.0,0.261639]
[1724045313867,0.239045,58567.0,58559.0,0.119537]
[1724045314068,0.239056,58564.0,58559.0,0.122952]
[1724045314299,0.119532,58562.0,58558.0,0.43319354]
[1724045314499,0.119532,58562.0,58559.0,0.119537]
[1724045315122,0.239047,58566.0,58559.0,0.119537]
[1724045315123,0.119524,58566.0,58562.0,0.25853]
[1724045315327,0.239041,58568.0,58562.0,0.25853]
[1724045315328,0.239041,58568.0,58563.0,0.17155454]
[1724045315544,0.239041,58568.0,58563.0,0.29108254]
[1724045315745,0.119521,58567.0,58564.0,0.119527]
[1724045315898,0.119521,58567.0,58564.0,0.29108154]
[1724045316511,0.119519,58568.0,58564.0,0.29108154]
[1724045316735,0.119519,58568.0,58565.0,0.119525]
[1724045316932,0.119519,58568.0,58566.0,0.0653]
[1724045317336,0.119521,58567.0,58566.0,0.0653]
[1724045317866,0.13507108,58567.0,58566.0,0.0653]
[1724045319607,0.01555008,58567.0,58566.0,0.35637754]
[1724045319756,0.01555008,58567.0,58566.0,0.37037754]
[1724045319954,0.120337,58570.0,58567.0,0.119521]
[1724045320161,0.358551,58569.0,58568.0,0.17155454]
[1724045320359,0.119517,58569.0,58568.0,0.17155454]
[1724045320781,0.120336,58570.0,58568.0,0.17155454]
[1724045321308,0.120336,58570.0,58566.0,0.012]
[1724045321309,0.119521,58567.0,58566.0,0.012]
[1724045321447,0.435563,58567.0,58566.0,0.012]
[1724045321893,0.597605,58567.0,58566.0,0.012]
[1724045322096,0.358563,58567.0,58561.0,0.0645]
[1724045322300,0.119528,58564.0,58562.0,0.17155454]
[1724045322507,0.316035,58569.0,58562.0,0.29108354]
[1724045322508,0.239044,58567.0,58562.0,0.29108354]
[1724045322706,0.239046,58566.0,58562.0,0.17155454]
[1724045323048,0.119526,58565.0,58562.0,0.17155454]
[1724045323627,0.119526,58565.0,58562.0,0.18555454]
[1724045324171,0.119526,58565.0,58562.0,0.17155454]
[1724045325636,0.119526,58565.0,58562.0,0.30508554]
[1724045325842,0.119526,58565.0,58563.0,0.0795]
[1724045326017,0.239043,58567.0,58564.0,0.17155454]
[1724045326440,0.119525,58565.0,58564.0,0.17155454]
[1724045326748,0.119522,58567.0,58564.0,0.17155454]
[1724045326983,0.119522,58567.0,58565.0,0.0615]
[1724045327212,0.119522,58567.0,58565.0,0.23305454]
[1724045329581,0.201623,58566.0,58565.0,0.18555454]
[1724045329791,0.440669,58566.0,58565.0,0.18555454]
[1724045329964,0.440669,58566.0,58565.0,0.19755454]
[1724045330369,0.440669,58566.0,58565.0,0.18555454]
[1724045330806,0.201623,58566.0,58565.0,0.18455454]
[1724045331352,0.440669,58566.0,58565.0,0.18455454]
[1724045331552,0.119523,58566.0,58565.0,0.013]
[1724045331761,0.358569,58566.0,58565.0,0.013]
[1724045332816,0.37418564,58566.0,58565.0,0.013]
[1724045332966,0.37418564,58566.0,58565.0,0.027]
[1724045334730,1.08397764,58566.0,58565.0,0.027]
[1724045335383,1.58128973,58566.0,58565.0,0.027]
[1724045335554,1.47917609,58566.0,58565.0,0.027]
[1724045336024,1.47917609,58566.0,58565.0,0.014]
[1724045336357,1.47917609,58566.0,58565.0,0.001]
[1724045336573,1.86182657,58566.0,58565.0,0.001]
[1724045336784,0.836776,58558.0,58557.0,0.0009031]
[1724045337136,1.12643696,58558.0,58557.0,0.0009031]
[1724045337505,1.1420536,58558.0,58557.0,0.0009031]
[1724045337906,1.1420536,58558.0,58557.0,0.0089031]
[1724045338495,1.0483536,58558.0,58557.0,0.0089031]
[1724045338909,1.0483536,58558.0,58557.0,0.0149031]
[1724045340527,1.14903427,58558.0,58557.0,0.0149031]
[1724045340767,1.38811327,58558.0,58557.0,0.0149031]
[1724045340936,1.49023519,58558.0,58557.0,0.0149031]
[1724045341167,1.23637164,58558.0,58557.0,0.0149031]
[1724045341374,1.49004868,58558.0,58557.0,0.0149031]
[1724045341791,1.38792676,58558.0,58557.0,0.0149031]
[1724045342216,1.51557916,58558.0,58557.0,0.0149031]
[1724045342388,1.89942902,58558.0,58557.0,0.0149031]
[1724045342948,1.89942902,58558.0,58557.0,0.0089031]
[1724045343148,1.89942902,58558.0,58557.0,0.0009031]
[1724045343469,1.89489749,58558.0,58557.0,0.0009031]
[1724045343675,1.76724509,58558.0,58557.0,0.0079031]
[1724045343837,1.76724509,58558.0,58557.0,0.0129031]
[1724045343838,1.76549718,58558.0,58557.0,0.0129031]
[1724045344370,1.76649718,58558.0,58557.0,0.0129031]
[1724045344575,2.00752698,58558.0,58557.0,0.0129031]
[1724045344788,2.39733556,58558.0,58557.0,0.0129031]
[1724045345208,2.39733556,58558.0,58557.0,0.0045647]
[1724045345367,2.39733556,58558.0,58555.0,0.009031]
[1724045345368,1.4589288,58556.0,58555.0,0.009031]
[1724045345568,2.12247486,58556.0,58555.0,0.009031]
[1724045345788,2.28117917,58556.0,58555.0,0.009031]
[1724045346204,2.52294406,58556.0,58555.0,0.009031]
[1724045346404,2.7954986,58556.0,58555.0,0.009031]
[1724045346606,2.7964986,58556.0,58555.0,0.010031]
[1724045347008,2.7954986,58556.0,58555.0,0.009031]
[1724045347213,2.7984986,58556.0,58555.0,0.010031]
[1724045347411,2.7954986,58556.0,58555.0,0.009031]
[1724045347846,2.7984986,58556.0,58555.0,0.010031]
[1724045348021,2.7984986,58556.0,58555.0,0.009031]
[1724045348022,2.8055636,58556.0,58555.0,0.009031]
[1724045348422,2.8195636,58556.0,58555.0,0.010031]
[1724045348995,2.8055636,58556.0,58555.0,0.009031]
[1724045349200,2.77671374,58556.0,58555.0,0.009031]
[1724045349408,2.52685228,58556.0,58555.0,0.010031]
[1724045349637,2.54085228,58556.0,58555.0,0.010031]
[1724045349751,2.54085471,58556.0,58555.0,0.010031]
[1724045349954,2.71240925,58556.0,58555.0,0.008564]
[1724045350186,2.3841318,58556.0,58555.0,0.008564]
[1724045350727,2.3831318,58556.0,58555.0,0.008564]
[1724045351704,2.00920112,58556.0,58555.0,0.008564]
[1724045351932,1.98375329,58556.0,58555.0,0.008564]
[1724045352162,1.8160021,58556.0,58555.0,0.008564]
[1724045352567,1.8020021,58556.0,58555.0,0.007564]
[1724045352797,1.7880021,58556.0,58555.0,0.007564]
[1724045352995,1.8020021,58556.0,58555.0,0.007564]
[1724045353196,1.8160021,58556.0,58555.0,0.007564]
[1724045353816,1.8020021,58556.0,58555.0,0.007564]
[1724045354230,1.73266447,58556.0,58555.0,0.007564]
[1724045354637,1.19000198,58556.0,58555.0,0.007564]